bitfinex-derivatives/quotes_ETHF0:USTF0_20251119
["timestamp","ask_amount","ask_price","bid_price","bid_amount"]
[1763583209344,1.36062216,2885.4,2885.3,0.24550021]
[1763583209647,0.79658,2885.4,2885.3,0.00520021]
[1763583210446,1.59574964,2885.4,2885.3,0.00520021]
[1763583211845,4.80354964,2885.4,2885.3,0.00520021]
[1763583212448,0.79662,2885.2,2885.1,0.00363045]
[1763583212745,1.59578964,2885.2,2885.1,0.00363045]
[1763583212944,2.52848287,2885.2,2885.1,0.00363045]
[1763583213139,0.2407,2884.3,2884.0,3.3583]
[1763583213344,1.698,2884.7,2884.2,0.2542]
[1763583213646,0.79931496,2884.6,2884.4,3.2078]
[1763583213848,0.00520021,2884.7,2884.4,3.2078]
[1763583214049,0.00520021,2884.7,2884.6,0.2542]
[1763583214448,0.24590021,2884.7,2884.4,3.21098219]
[1763583214647,0.2407,2884.5,2884.4,3.21098219]
[1763583215244,0.94805,2884.5,2884.2,0.00520021]
[1763583215450,0.56249,2883.3,2883.0,0.1536]
[1763583215746,0.56251,2883.2,2883.0,0.1536]
[1763583216070,0.93458846,2883.6,2883.2,0.2542]
[1763583216158,0.79954477,2883.7,2883.6,0.2542]
[1763583216382,0.00341686,2883.7,2883.6,3.46587224]
[1763583216743,1.94626,2884.5,2884.0,0.1536]
[1763583217044,0.82546817,2884.4,2884.0,0.1536]
[1763583217245,3.2078,2884.4,2884.0,0.1536]
[1763583217547,0.82523232,2884.3,2884.0,0.1536]
[1763583217748,0.00386551,2884.3,2884.0,0.1536]
[1763583218544,3.2078,2884.1,2884.0,0.1536]
[1763583218847,0.00386551,2884.3,2884.0,0.1536]
[1763583220348,0.00386551,2884.3,2884.1,3.2078]
[1763583220544,0.00386551,2884.3,2884.2,0.2542]
[1763583221447,0.00520021,2884.7,2884.2,0.2542]
[1763583221652,0.00520021,2884.7,2884.6,3.462]
[1763583222043,2.1e-07,2884.7,2884.6,3.462]
[1763583222545,3.2078,2885.5,2885.0,0.1536]
[1763583222744,3.2078,2885.5,2885.1,3.2078]
[1763583223048,0.56201,2885.8,2885.5,0.1536]
[1763583223243,0.93458846,2886.3,2885.7,3.462]
[1763583223443,0.8240535,2886.2,2886.0,0.1536]
[1763583223652,0.0042557,2886.2,2886.1,3.2078]
[1763583223851,0.87577677,2886.2,2886.1,3.462]
[1763583224254,0.0042557,2886.2,2886.1,0.2542]
[1763583224454,0.0042557,2886.2,2886.0,0.15764389]
[1763583225249,0.87151037,2886.1,2886.0,0.15764389]
[1763583225556,0.0042557,2886.2,2886.0,0.15764389]
[1763583225557,0.0042557,2886.2,2886.1,0.2542]
[1763583225752,0.0042557,2886.2,2886.1,3.462]
[1763583226751,0.0042557,2886.2,2886.1,3.2078]
[1763583228560,0.0042557,2886.2,2886.1,3.462]
[1763583230454,0.93458846,2887.3,2887.1,0.2542]
[1763583230649,0.93458846,2887.9,2887.5,0.1536]
[1763583230848,3.94912846,2888.2,2887.7,3.2078]
[1763583231050,0.86986928,2888.1,2888.0,0.1536]
[1763583231253,0.86986928,2888.1,2887.5,0.1536]
[1763583231254,0.87256764,2888.1,2887.5,0.1536]
[1763583231454,3.76939,2887.9,2887.8,0.00520021]
[1763583231759,4.6381104,2887.9,2887.8,2.1e-07]
[1763583231953,0.56165,2887.6,2887.0,0.1536]
[1763583232259,3.2078,2887.4,2887.0,0.1536]
[1763583233056,0.56171,2887.3,2887.0,0.1536]
[1763583233458,0.56171,2887.3,2887.1,3.2078]
[1763583233854,0.56171,2887.3,2887.0,0.1536]
[1763583236158,0.56174,2887.2,2887.0,0.1536]
[1763583236360,0.56175,2887.1,2887.0,0.1536]
[1763583237653,1.729,2887.7,2887.5,0.1536]
[1763583238262,2.29063,2887.7,2887.5,0.1536]
[1763583239962,3.76945,2887.6,2887.5,0.1536]
[1763583240263,3.76945,2887.6,2887.0,0.1536]
[1763583240264,0.56174,2887.2,2887.0,0.1536]
[1763583240472,3.2078,2887.6,2887.5,0.1536]
[1763583240760,0.56162,2887.8,2887.7,0.2542]
[1763583240954,0.56162,2887.8,2887.5,0.1536]
[1763583241351,3.2078,2887.9,2887.2,3.2078]
[1763583241560,0.56169,2887.4,2887.0,0.1536]
[1763583242157,0.5616,2887.9,2887.5,0.1454]
[1763583242365,0.56162,2887.8,2887.5,0.1454]
[1763583243156,0.56164,2887.7,2887.5,0.1454]
[1763583243351,3.76944,2887.7,2887.5,0.1454]
[1763583243761,0.56164,2887.7,2887.5,3.3532]
[1763583243962,0.56164,2887.7,2887.6,0.2346]
[1763583244870,0.00393,2888.1,2888.0,0.38]
[1763583246859,0.00393,2888.1,2888.0,0.1454]
[1763583247064,0.56548,2888.1,2888.0,0.1454]
[1763583249564,0.56548,2888.1,2887.5,0.1454]
[1763583249565,0.00393,2888.1,2887.5,0.1454]
[1763583249764,0.00393,2888.1,2887.0,0.1536]
[1763583249765,5.83612454,2887.8,2887.0,0.1536]
[1763583250072,0.56177,2887.0,2886.9,2.1e-07]
[1763583250363,4.81603996,2887.0,2886.9,2.1e-07]
[1763583250570,6.0621579,2887.0,2886.9,2.1e-07]
[1763583251267,4.81603996,2887.0,2886.9,2.1e-07]
[1763583252169,6.68370513,2887.0,2886.9,2.1e-07]
[1763583253268,4.81952031,2887.0,2886.9,2.1e-07]
[1763583253466,6.68024433,2887.0,2886.9,2.1e-07]
[1763583256168,4.81952031,2887.0,2886.9,2.1e-07]
[1763583256368,6.68091766,2887.0,2886.9,2.1e-07]
[1763583257275,4.81952031,2887.0,2886.9,2.1e-07]
[1763583259476,6.6812991,2887.0,2886.9,2.1e-07]
[1763583260568,4.81952031,2887.0,2886.9,2.1e-07]
[1763583261373,6.68167255,2887.0,2886.9,2.1e-07]
[1763583261774,4.81952031,2887.0,2886.9,2.1e-07]
[1763583264178,6.68118858,2887.0,2886.9,2.1e-07]
[1763583265484,6.68118858,2887.0,2886.9,0.23460021]
[1763583265772,2.6181,2887.0,2886.9,9.44240021]
[1763583265980,0.56169,2887.4,2887.3,0.2464]
[1763583266177,1.42558965,2887.4,2887.3,0.2464]
[1763583271376,0.86389965,2887.4,2887.3,0.2464]
[1763583271975,4.44874603,2888.2,2887.5,0.1462]
[1763583272179,3.2078,2887.6,2887.5,0.1462]
[1763583272581,5.01039603,2887.6,2887.0,0.1407]
[1763583273776,0.56174,2887.2,2887.0,0.1407]
[1763583274081,3.342,2887.1,2887.0,0.3731]
[1763583276589,0.56165,2887.6,2887.5,0.3786]
[1763583279683,0.56165,2887.6,2887.5,0.1462]
[1763583279684,3.76945,2887.6,2887.5,0.1462]
[1763583280077,0.56165,2887.6,2887.5,0.1462]
[1763583280787,3.76945,2887.6,2887.5,0.1462]
[1763583281092,0.5617,2887.4,2887.0,0.1407]
[1763583281389,3.76955,2887.1,2887.0,0.1462]
[1763583281590,5.01049603,2887.1,2887.0,0.1462]
[1763583282384,3.76955,2887.1,2887.0,0.1462]
[1763583282690,3.76955,2887.1,2887.0,0.3786]
[1763583283078,3.76955,2887.1,2887.0,0.1462]
[1763583283891,4.61765525,2887.1,2887.0,0.1462]
[1763583284597,0.56177,2887.0,2886.9,2.1e-07]
[1763583284893,1.40987525,2887.0,2886.9,2.1e-07]
[1763583286799,2.65082128,2887.0,2886.9,2.1e-07]
[1763583287298,1.40987525,2887.0,2886.9,2.1e-07]
[1763583288394,3.27154352,2887.0,2886.9,2.1e-07]
[1763583288595,1.40987525,2887.0,2886.9,2.1e-07]
[1763583290094,3.2757125,2887.0,2886.9,2.1e-07]
[1763583291894,2.65361337,2887.0,2886.9,2.1e-07]
[1763583292197,1.40987525,2887.0,2886.9,2.1e-07]
[1763583292399,2.65361337,2887.0,2886.9,2.1e-07]
[1763583293197,1.40987525,2887.0,2886.9,2.1e-07]
[1763583294203,1.40987525,2887.0,2886.0,0.14944389]
[1763583294204,0.56187,2886.5,2886.0,0.14944389]
[1763583294401,0.84810525,2886.4,2886.0,0.14944389]
[1763583296320,2.814,2886.3,2886.0,0.14944389]
[1763583296519,4.05590525,2886.2,2886.0,0.14944389]
[1763583296719,0.84810525,2886.1,2886.0,0.14944389]
[1763583297214,1.41004525,2886.1,2886.0,0.14944389]
[1763583297522,0.84810525,2886.1,2886.0,0.38184389]
[1763583297916,2.814,2886.3,2886.2,0.2324]
[1763583298221,3.66243522,2886.3,2886.0,0.14944389]
[1763583298420,0.84843522,2886.2,2886.0,0.14944389]
[1763583298721,2.814,2886.3,2886.2,0.2324]
[1763583298919,3.66228569,2886.3,2886.2,0.2324]
[1763583300519,2.814,2886.3,2886.2,0.2324]
[1763583301116,0.00520021,2886.5,2886.1,3.2078]
[1763583301320,3.2078,2887.7,2887.5,0.1462]
[1763583301321,1.24413367,2887.6,2887.5,0.1462]
[1763583301515,0.84803374,2887.6,2887.5,0.3786]
[1763583301917,0.84803374,2887.6,2887.5,3.5864]
[1763583302119,0.84803374,2887.6,2887.5,0.3786]
[1763583302515,0.00520021,2887.8,2887.5,0.3786]
[1763583302822,0.00520021,2887.8,2887.7,0.2324]
[1763583303516,3.76927,2888.6,2887.7,0.2324]
[1763583303517,1.24413367,2889.1,2889.0,0.1397]
[1763583303821,0.84733894,2889.1,2889.0,0.1397]
[1763583304619,0.84733894,2889.1,2889.0,0.00403101]
[1763583304620,1.41262713,2889.1,2889.0,0.00403101]
[1763583304924,0.56143,2888.8,2888.5,0.1397]
[1763583305123,4.05513894,2888.7,2888.5,0.1397]
[1763583305319,3.2078,2888.7,2888.5,0.1397]
[1763583305526,3.2078,2888.7,2888.0,0.1397]
[1763583305527,2.08984059,2888.6,2888.0,0.1397]
[1763583305819,0.56151,2888.3,2888.0,0.14867402]
[1763583306017,0.56151,2888.3,2888.1,0.2469]
[1763583306018,0.84570692,2888.2,2888.1,0.2469]
[1763583306223,3.379,2888.3,2888.1,0.2469]
[1763583306424,3.379,2888.3,2888.2,0.2469]
[1763583307629,3.2078,2888.7,2888.6,0.2469]
[1763583307924,3.2078,2889.0,2888.6,0.2469]
[1763583308126,0.84497451,2888.9,2888.6,0.2469]
[1763583308319,3.2078,2889.0,2888.6,0.2469]
[1763583308822,0.84448257,2888.9,2888.5,0.1397]
[1763583309024,0.56148,2888.5,2888.0,0.14867402]
[1763583309328,3.7693,2888.4,2888.0,0.14867402]
[1763583310228,3.2078,2888.7,2888.5,0.1397]
[1763583312026,0.56148,2888.5,2888.0,0.14867402]
[1763583312226,3.2078,2888.3,2888.0,0.14867402]
[1763583312929,3.76932,2888.3,2888.0,0.14867402]
[1763583314224,3.2078,2888.7,2888.5,0.1397]
[1763583315726,3.2078,2888.7,2888.6,0.2469]
[1763583316634,3.2078,2888.7,2888.5,0.1397]
[1763583317034,0.5614,2888.9,2888.5,0.1397]
[1763583317338,3.2078,2889.0,2888.8,0.2469]
[1763583317832,2.28492819,2889.1,2889.0,0.1397]
[1763583318036,2.28492819,2889.1,2889.0,0.3866]
[1763583319734,2.28492819,2889.1,2889.0,0.1397]
[1763583320131,0.56141,2888.9,2888.7,3.2078]
[1763583320330,0.56141,2888.9,2888.5,0.1397]
[1763583322934,0.56141,2888.9,2888.0,0.14867402]
[1763583322935,0.56149,2888.4,2888.0,0.14867402]
[1763583323136,0.56155,2888.1,2888.0,0.14867402]
[1763583323531,3.2078,2888.6,2888.0,0.14867402]
[1763583323739,3.2078,2888.6,2888.5,0.1397]
[1763583325342,3.2078,2888.6,2888.0,0.14867402]
[1763583325743,0.56148,2888.5,2888.0,0.14867402]
[1763583326040,3.2078,2888.6,2888.0,0.14867402]
[1763583326041,0.5615,2888.4,2888.0,0.14867402]
[1763583326434,0.56152,2888.3,2888.0,0.14867402]
[1763583328142,0.8444682,2888.2,2888.0,0.14867402]
[1763583328438,0.56152,2888.3,2888.0,0.14867402]
[1763583328743,0.8445543,2888.2,2888.0,0.14867402]
[1763583328935,0.56152,2888.3,2888.0,0.14867402]
[1763583329135,0.84456312,2888.2,2888.0,0.14867402]
[1763583329335,0.84456312,2888.1,2888.0,0.14867402]
[1763583329543,0.84456312,2888.2,2888.0,0.14867402]
[1763583329842,0.56152,2888.3,2888.0,0.14867402]
[1763583329843,0.84456312,2888.1,2888.0,0.14867402]
[1763583330043,0.84456312,2888.2,2888.0,0.40457402]
[1763583330239,0.84456312,2888.2,2888.1,0.2559]
[1763583330441,3.2078,2888.6,2888.5,0.12125406]
[1763583330642,4.05360706,2888.6,2888.5,0.12125406]
[1763583330842,0.84580706,2888.6,2888.5,0.12125406]
[1763583331137,0.84580706,2888.6,2888.5,0.37715406]
[1763583332041,0.66473165,2889.1,2889.0,0.3883]
[1763583332247,0.66473165,2889.1,2888.5,0.12125406]
[1763583332248,0.00392819,2889.1,2888.5,0.12125406]
[1763583332443,3.2078,2888.9,2888.5,0.12125406]
[1763583332648,4.45193367,2888.9,2888.5,0.12125406]
[1763583332849,3.2078,2888.9,2888.5,0.12125406]
[1763583333050,0.56142,2888.8,2888.5,0.12125406]
[1763583333440,4.45193367,2888.9,2888.7,0.2408]
[1763583333641,1.24413367,2888.9,2888.7,0.2408]
[1763583333948,1.24413367,2889.0,2888.7,0.2408]
[1763583334153,0.5616,2887.9,2887.0,2.62253639]
[1763583334338,3.2078,2887.2,2887.1,0.2408]
[1763583334543,3.2078,2887.5,2887.0,0.1475]
[1763583334852,3.2078,2887.2,2887.0,0.1475]
[1763583335145,3.2078,2887.2,2887.0,0.15065964]
[1763583335648,4.45236644,2887.2,2887.0,0.15065964]
[1763583335841,1.24976665,2887.4,2887.1,0.2408]
[1763583336052,0.00520021,2887.4,2887.3,0.2408]
[1763583336244,0.00520021,2887.4,2887.0,0.15065964]
[1763583336453,3.2078,2887.2,2887.0,0.15065964]
[1763583337944,3.2078,2887.2,2887.1,0.2408]
[1763583338448,3.2078,2887.2,2886.8,0.00520021]
[1763583338449,0.56182,2886.8,2886.5,0.1475]
[1763583338645,3.2078,2886.6,2886.5,0.3883]
[1763583339246,3.2078,2886.6,2886.5,0.1475]
[1763583339444,3.21070787,2886.6,2886.5,0.15122262]
[1763583341750,3.77254787,2886.6,2886.5,0.15122262]
[1763583342055,3.77254787,2886.6,2886.5,0.00372262]
[1763583342649,0.56188,2886.4,2886.0,0.1475]
[1763583342845,3.2078,2886.1,2886.0,0.1475]
[1763583343743,3.2078,2886.1,2886.0,0.150036]
[1763583343948,5.48022907,2886.1,2885.8,0.00520021]
[1763583344148,0.56198,2885.9,2885.8,0.00520021]
[1763583345155,0.56198,2885.9,2885.8,0.00859756]
[1763583345360,0.56198,2885.9,2885.5,0.1475]
[1763583345652,3.2078,2885.6,2885.5,0.1475]
[1763583346455,3.2078,2885.6,2885.5,0.1514352]
[1763583349557,0.00520021,2885.8,2885.7,0.2408]
[1763583349959,0.00520021,2885.8,2885.5,0.1514352]
[1763583350156,0.00520021,2885.8,2885.5,0.3922352]
[1763583350157,3.2078,2885.6,2885.5,0.3922352]
[1763583351253,0.00520021,2885.8,2885.7,0.2408]
[1763583351758,0.00520021,2885.8,2885.5,0.1514352]
[1763583352053,3.2078,2885.7,2885.5,0.1514352]
[1763583352258,3.2078,2885.7,2885.6,0.2408]
[1763583353646,3.2078,2885.7,2885.5,0.1514352]
[1763583356255,3.2078,2885.7,2885.6,0.2408]
[1763583356658,3.2078,2885.7,2885.5,0.1514352]
[1763583359164,3.2078,2885.7,2885.6,0.2408]
[1763583359350,3.2078,2885.7,2885.5,0.1514352]
[1763583360457,0.56204,2885.6,2885.5,0.1514352]
[1763583361154,0.56204,2885.6,2885.5,0.3922352]
[1763583361354,0.56204,2885.6,2885.5,0.1514352]
[1763583361953,0.56206,2885.5,2885.3,0.0034668]
[1763583362261,3.2078,2885.4,2885.3,0.0034668]
[1763583362465,3.2078,2885.4,2885.3,0.2850668]
[1763583362962,3.15227424,2885.7,2885.6,0.2816]
[1763583363260,3.2078,2886.4,2886.0,0.1692]
[1763583363464,0.8358532,2886.3,2886.0,0.1692]
[1763583363659,3.2078,2886.4,2886.0,0.1692]
[1763583363867,4.04363289,2886.3,2886.0,0.1692]
[1763583364064,3.2078,2886.3,2886.2,0.2816]
[1763583364366,4.04373389,2886.3,2886.2,0.2816]
[1763583364662,0.56709021,2886.4,2886.2,0.2816]
[1763583364861,0.83616656,2886.3,2886.2,0.2816]
[1763583365065,0.56709021,2886.4,2886.2,0.2816]
[1763583365463,0.56194,2886.1,2886.0,0.1692]
[1763583365663,0.56198,2886.0,2885.6,3.2078]
[1763583365866,0.56201,2885.8,2885.6,3.2078]
[1763583366163,1.3985547,2885.7,2885.6,3.2078]
[1763583366372,1.3985547,2885.7,2885.5,0.1692]
[1763583366558,0.8365347,2885.6,2885.5,0.1692]
[1763583367268,0.8365347,2885.6,2885.5,0.4508]
[1763583367464,0.8365347,2885.8,2885.5,0.1692]
[1763583369667,3.76984,2885.6,2885.5,0.1692]
[1763583369867,5.85094114,2885.6,2885.5,0.1692]
[1763583370368,2.08110114,2885.6,2885.5,0.1692]
[1763583370958,5.85094114,2885.6,2885.5,0.1692]
[1763583371157,0.56214,2885.1,2884.5,0.1692]
[1763583371369,0.56219,2884.9,2884.5,0.1692]
[1763583371572,1.80871242,2884.9,2884.5,0.1692]
[1763583371767,0.8365347,2884.8,2884.5,0.1692]
[1763583371969,3.87572403,2884.7,2884.0,0.1692]
[1763583372171,3.2078,2884.4,2884.0,0.1692]
[1763583372370,0.8365347,2884.3,2884.1,0.00520021]
[1763583372670,0.8365347,2884.3,2884.2,0.2816]
[1763583372878,0.8365347,2884.3,2884.1,0.00520021]
[1763583373370,1.3988347,2884.3,2884.1,0.00520021]
[1763583373576,3.46573631,2884.2,2883.6,3.2078]
[1763583373772,1.24652242,2883.9,2883.6,3.2078]
[1763583373972,0.8365347,2883.8,2883.6,3.2078]
[1763583374171,1.3989447,2883.7,2883.6,3.2078]
[1763583374368,1.3989447,2883.7,2883.3,3.2078]
[1763583374563,0.8365347,2883.6,2883.3,3.21109457]
[1763583374764,0.8365347,2883.5,2883.3,3.21109457]
[1763583375069,0.8365347,2883.4,2883.3,3.21109457]
[1763583375369,3.2078,2883.4,2883.3,0.00329457]
[1763583375672,4.04195458,2883.4,2883.3,0.00329457]
[1763583376267,3.2078,2883.4,2883.3,0.00329457]
[1763583376664,3.77027,2883.4,2883.3,0.00329457]
[1763583376870,4.60343559,2883.4,2883.3,0.00329457]
[1763583377270,3.77027,2883.4,2883.3,0.00329457]
[1763583377865,3.77016,2884.0,2883.5,0.1692]
[1763583378068,3.2078,2884.3,2884.0,0.1692]
[1763583378776,3.21300021,2884.6,2884.0,0.1692]
[1763583378978,3.21300021,2884.6,2884.3,0.2816]
[1763583379488,0.00520021,2884.6,2884.3,0.2816]
[1763583379777,0.00181456,2884.6,2884.5,0.4508]
[1763583379978,0.00181456,2884.6,2884.5,3.6586]
[1763583380576,0.00473961,2884.6,2884.5,0.4508]
[1763583381181,0.00473961,2884.6,2884.5,3.6586]
[1763583381667,3.2078,2885.3,2885.0,0.1692]
[1763583382684,3.21223499,2885.3,2885.0,0.1692]
[1763583382975,3.21223499,2885.3,2885.2,0.2816]
[1763583383381,0.00443499,2885.3,2885.2,0.2816]
[1763583383680,0.56214,2885.1,2885.0,0.1692]
[1763583386686,3.21223499,2885.3,2885.2,0.4077]
[1763583387190,3.21223499,2885.3,2885.0,0.1692]
[1763583387384,3.21223499,2885.3,2885.2,0.4077]
[1763583387583,3.21223499,2885.3,2885.0,0.1692]
[1763583388594,0.00443499,2885.3,2885.2,0.4077]
[1763583389681,0.00520021,2885.4,2885.3,0.4077]
[1763583390185,3.2078,2886.1,2886.0,0.2283]
[1763583390489,0.5619,2886.3,2886.0,0.636]
[1763583390686,0.56453882,2886.3,2886.0,0.64046929]
[1763583392183,2.1e-07,2886.4,2886.3,0.3684]
[1763583392488,3.2078,2887.3,2887.2,0.3684]
[1763583392883,3.2078,2888.2,2887.5,0.2185]
[1763583393083,3.2078,2888.2,2888.1,0.3684]
[1763583393688,0.00418549,2888.2,2888.1,0.37253273]
[1763583394484,0.00418549,2888.2,2888.1,0.00413273]
[1763583395783,0.56571549,2888.2,2888.1,0.00413273]
[1763583396294,0.00418549,2888.2,2888.1,0.00413273]
[1763583399691,0.00418549,2888.2,2888.1,0.37253273]
[1763583399890,0.00520021,2888.4,2888.1,0.37253273]
[1763583399891,0.00520021,2888.4,2888.3,0.3684]
[1763583400087,3.2078,2888.9,2888.8,0.3684]
[1763583400398,3.2078,2889.2,2889.0,0.2185]
[1763583400786,3.21109586,2889.2,2889.0,0.2185]
[1763583401097,3.21109586,2889.2,2888.5,3.4263]
[1763583401098,0.56137,2889.1,2888.5,3.4263]
[1763583401289,3.2078,2888.9,2888.5,0.2185]
[1763583401794,3.76926,2888.6,2888.1,0.00413273]
[1763583402191,3.76926,2888.6,2888.5,0.2185]
[1763583402694,11.83700161,2888.6,2888.1,0.00413273]
[1763583402889,0.56162,2887.8,2887.3,3.2078]
[1763583403191,0.56163,2887.7,2887.3,3.2078]
[1763583403988,0.56163,2887.7,2887.5,0.22106151]
[1763583404785,3.2078,2887.8,2887.5,0.22106151]
[1763583404989,3.2078,2887.8,2887.7,0.3684]
[1763583405195,3.2078,2888.1,2888.0,0.2185]
[1763583406194,3.2078,2888.1,2888.0,0.5869]
[1763583406996,3.2078,2888.1,2888.0,0.2185]
[1763583407196,3.76935,2888.1,2888.0,0.2185]
[1763583407391,3.76935,2888.1,2887.5,0.22106151]
[1763583407392,0.56158,2888.0,2887.5,0.22106151]
[1763583407586,3.2078,2887.8,2887.5,0.22106151]
[1763583407792,3.76942,2887.8,2887.5,0.22106151]
[1763583409395,3.2078,2887.8,2887.5,0.22106151]
[1763583409600,3.2078,2887.8,2887.5,0.00256151]
[1763583409803,3.2078,2887.8,2887.5,0.22106151]
[1763583410691,0.56165,2887.6,2887.5,0.22106151]
[1763583411703,0.56165,2887.6,2887.5,0.58946151]
[1763583411997,0.56165,2887.6,2887.5,0.22106151]
[1763583412795,0.56165,2887.6,2887.5,0.58946151]
[1763583413801,0.56165,2887.6,2887.5,0.22106151]
[1763583415100,3.2078,2887.8,2887.5,0.22106151]
[1763583416209,3.76936,2888.1,2888.0,0.2185]
[1763583416505,4.59996634,2888.1,2888.0,0.5869]
[1763583416707,3.76936,2888.1,2888.0,0.5869]
[1763583416907,3.76936,2888.1,2888.0,0.2185]
[1763583417612,3.76936,2888.1,2888.0,0.5869]
[1763583418614,3.2078,2888.1,2888.0,0.5869]
[1763583419101,4.04099969,2888.1,2888.0,0.5869]
[1763583419302,3.2078,2888.1,2888.0,0.5869]
[1763583419503,2.391,2888.2,2888.0,0.5869]
[1763583419697,2.391,2888.2,2888.0,0.2185]
[1763583419901,0.83320721,2888.1,2888.0,0.2185]
[1763583420112,2.391,2888.2,2888.0,0.2185]
[1763583420298,2.391,2888.2,2887.5,0.22106151]
[1763583420299,0.56164,2887.7,2887.5,0.22106151]
[1763583420498,0.83406091,2887.6,2887.5,0.22106151]
[1763583420710,0.56169,2887.4,2887.3,0.00520021]
[1763583421008,0.56169,2887.4,2887.0,0.2185]
[1763583421009,0.56174,2887.2,2887.0,0.2185]
[1763583421214,1.49272435,2887.2,2887.0,0.5869]
[1763583421503,0.83406091,2887.1,2887.0,0.5869]
[1763583421705,0.93098435,2887.4,2887.0,0.59133482]
[1763583421905,0.00428116,2887.1,2887.0,0.59133482]
[1763583422096,0.84002988,2887.1,2887.0,0.59133482]
[1763583422906,0.93098435,2887.5,2887.4,0.3275]
[1763583423103,0.00520021,2887.5,2887.4,0.3275]
[1763583423304,0.00520021,2887.5,2887.4,6.3275]
[1763583423598,3.2078,2887.9,2887.8,0.3275]
[1763583424110,1.24652242,2888.2,2888.0,0.1995]
[1763583424300,1.24975079,2888.2,2888.0,0.1995]
[1763583424502,1.81128079,2888.2,2888.0,0.1995]
[1763583424900,0.5616,2887.9,2887.5,0.1995]
[1763583425105,3.76941,2887.8,2887.5,0.1995]
[1763583425311,5.01593242,2887.8,2887.5,0.1995]
[1763583425508,1.24652242,2887.7,2887.5,0.1995]
[1763583425713,0.56169,2887.4,2887.0,0.22293482]
[1763583425900,0.56169,2887.4,2887.0,3.43073482]
[1763583426301,1.80548729,2887.4,2887.0,0.22293482]
[1763583426506,0.56169,2887.4,2887.0,3.43073482]
[1763583427011,0.56169,2887.4,2887.0,0.22293482]
[1763583427605,3.2078,2887.2,2887.0,0.22293482]
[1763583427806,0.56183,2886.7,2886.5,0.2185]
[1763583428006,5.01347215,2886.7,2886.5,0.2185]
[1763583428814,5.01347215,2886.7,2886.5,0.22240268]
[1763583430209,1.24292267,2886.8,2886.7,0.3275]
[1763583430410,0.00520021,2886.9,2886.8,0.3275]
[1763583431914,4.45072267,2887.0,2886.8,0.3275]
[1763583432114,2.267e-05,2888.1,2887.6,0.3275]
[1763583432318,1.86576322,2889.1,2888.4,0.1995]
[1763583432510,0.56137,2889.1,2888.5,3.2078]
[1763583432920,2.27077949,2889.4,2889.0,0.1995]
[1763583433420,2.27374617,2889.4,2889.0,0.20342474]
[1763583433920,3.2078,2889.3,2889.0,0.20342474]
[1763583434716,0.56136,2889.1,2889.0,2.474e-05]
[1763583434911,1.36814984,2889.1,2889.0,2.474e-05]
[1763583436014,1.36814984,2889.1,2889.0,0.19952474]
[1763583437919,1.36814984,2889.1,2889.0,2.474e-05]
[1763583438119,0.56138,2889.0,2888.9,0.00520021]
[1763583438327,4.57596984,2889.0,2888.9,0.00520021]
[1763583438619,6.84674933,2889.0,2888.9,0.00520021]
[1763583438821,0.5614,2888.9,2888.4,0.1995]
[1763583439014,0.80678984,2888.8,2888.4,0.20361591]
[1763583439214,0.80678984,2888.7,2888.4,0.20361591]
[1763583439421,0.80678984,2888.6,2888.4,0.20361591]
[1763583439722,0.80678984,2888.5,2888.4,0.20361591]
[1763583440328,0.80678984,2888.5,2888.4,0.00411591]
[1763583440723,0.56151,2888.3,2888.2,0.00520021]
[1763583441026,0.56151,2888.3,2887.8,0.1995]
[1763583441027,0.56157,2888.1,2887.8,0.1995]
[1763583441822,3.2078,2887.9,2887.1,3.2078]
[1763583442016,3.76946,2887.6,2887.3,0.00520021]
[1763583442221,3.21300021,2887.7,2887.3,0.00520021]
[1763583442928,0.00520021,2887.7,2887.6,3.5353]
[1763583443326,3.2078,2888.3,2887.8,0.1995]
[1763583444224,0.00520021,2888.3,2887.9,3.2078]
[1763583446924,0.00520021,2888.3,2888.0,0.3831]
[1763583450630,0.56672021,2888.3,2888.0,0.3831]
[1763583451529,0.56672021,2888.3,2888.1,3.2078]
[1763583451730,0.00520021,2888.3,2888.2,0.3831]
[1763583455436,1.709,2889.1,2889.0,0.2227]
[1763583455733,2.51495911,2889.1,2889.0,0.2227]
[1763583456328,3.07631911,2889.1,2889.0,0.2227]
[1763583456530,0.56139,2889.0,2888.8,0.00520021]
[1763583457334,3.7692,2888.9,2888.8,0.00520021]
[1763583457528,6.84605022,2888.9,2888.8,0.00520021]
[1763583459036,4.57527073,2888.9,2888.8,0.00520021]
[1763583459735,4.57527073,2888.9,2887.8,0.1995]
[1763583459736,0.56148,2888.5,2887.8,0.1995]
[1763583459939,3.2078,2889.1,2888.8,0.3723]
[1763583460137,0.3267,2888.5,2888.1,3.2078]
[1763583460433,3.5345,2888.5,2887.8,3.4073]
[1763583460734,3.5345,2888.5,2887.9,0.00520021]
[1763583460735,4.09598,2888.5,2887.9,0.00520021]
[1763583463235,0.88827,2888.0,2887.9,0.00520021]
[1763583463440,4.09607,2888.0,2887.9,0.00520021]
[1763583464123,3.24865417,2888.2,2887.9,0.65520021]
[1763583464325,0.2309,2889.0,2888.1,5.47857949]
[1763583464635,0.6072,2889.0,2888.9,3.2078]
[1763583465029,0.6072,2889.0,2888.6,3.2078]
[1763583465230,0.3763,2888.7,2888.6,3.2078]
[1763583468937,0.2309,2889.0,2888.6,3.2078]
[1763583469138,0.2309,2889.0,2888.9,3.2078]
[1763583471144,0.00520021,2889.3,2888.9,9.2078]
[1763583471338,0.00520021,2889.3,2889.2,3.2078]
[1763583476743,0.38150021,2889.3,2889.2,3.2078]
[1763583480446,0.6072,2889.0,2888.9,3.2078]
[1763583481143,0.2309,2889.0,2888.9,3.2078]
[1763583483550,0.00520021,2889.3,2888.9,3.2078]
[1763583483850,0.00520021,2889.3,2889.2,3.2078]
[1763583485552,0.50100021,2889.3,2889.2,3.2078]
[1763583485749,0.00520021,2889.3,2889.2,3.2078]
[1763583486252,0.50100021,2889.3,2889.2,3.2078]
[1763583487139,0.00520021,2889.3,2889.2,3.2078]
[1763583487747,0.50100021,2889.3,2889.2,3.2078]
[1763583489453,0.50100021,2889.3,2888.6,1.23854159]
[1763583489454,0.50100021,2889.3,2888.9,3.2078]
[1763583489647,0.50100021,2889.3,2888.6,3.2078]
[1763583489648,0.4958,2888.7,2888.6,3.2078]